Cogmind - Beta 17 @@@ ROGUE MODE // 2026.07.01 @ 16:35:19 Player: THN-L0C Result: Self-destructed Performance ------------- Evolutions (5) 2500 Regions Visited (8) 1600 Robots Destroyed (43) 215 Value Destroyed (1579) 1579 Prototype IDs (37) 740 Alien Tech Used (0) 0 Bonus (3195) 3195 TOTAL SCORE: 9829 Bonus ------- Follower Combat Kills 525 Registered with UFD 300 Met Warlord at Base 500 MAIN.C Attacked Warlord 500 Warlord Defense Kills 1394 Friendly Fire -24 Cogmind --------- Core Integrity 759/1000 Matter 290/300 Energy 94/100 System Corruption 15% Temperature Cool (4) Movement Flying (34) Location -4/Proximity Caves Parts ------- > --- POWER (2) -------- Backup Power III > --- PROPULSION (5) --- Electron Diverter Flightbrick > --- UTILITY (8+2) ---- Experimental Coolant Injector Medium Storage Unit (+) Spectral Analyzer (+) Seismic Detector Makeshift Salvage Targeting Computer Advanced Target Analyzer Experimental Focal Shield Amulet of Y3-NDR > --- WEAPON (2) ------- Thermoblaster Power Maul > --- INVENTORY (10) --- Electron Diverter Experimental Targeting Computer Enhanced Scrap Shield Ghost Barrier Vortex Rifle (35) Vortex Rifle (35) Vortex Cannon (26) Plasma Lance Peak State ------------ > --- POWER ------------ Backup Power III Micro Fission Core > --- PROPULSION ------- Electron Diverter Flightbrick > --- UTILITY ---------- Experimental Coolant Injector Medium Storage Unit Spectral Analyzer Seismic Detector Makeshift Salvage Targeting Computer Makeshift Salvage Targeting Computer Advanced Melee Analysis Suite Improved Target Analyzer Makeshift Transmission Jammer Experimental Focal Shield Amulet of Y3-NDR > --- WEAPON ----------- Helical Railgun Power Maul > --- INVENTORY -------- Electron Diverter Experimental Targeting Computer Enhanced Scrap Shield Ghost Barrier Vortex Rifle Vortex Rifle Vortex Cannon Vortex Cannon Sapper Charge [Rating: 134] Favorites ----------- Power Light Angular Momentum Engine Engine Light Angular Momentum Engine Power Core Micro Fission Core Propulsion Armored Wheel Treads Light Treads Leg Makeshift Leg Wheel Armored Wheel Flight Unit Flightbrick Utility Large Storage Unit Device V3-11A's Pendant Storage Large Storage Unit Processor Spectral Analyzer Hackware Hacking Suite Protection Improved Medium Armor Plating Weapon Assault Rifle Energy Gun Subdweller Laser Energy Cannon Vortex Cannon Ballistic Gun Assault Rifle Ballistic Cannon Battle Cannon Launcher Rocket Launcher Special Weapon CPS Tube Impact Weapon Power Maul Slashing Weapon Great Axe Piercing Weapon Spear Special Melee Weapon Datajack Build | -11 -10 -10 -7 -5 -5 -5 -5 -4 ------- Run | Yrd Mat Sub Scr Fac Upp Upp War Pro Slots Evolved 10 | . . . . 10 . . . . Power 1 | . . . . 1 . . . . Propulsion 3 | . . . . 3 . . . . Utility 6 | . . . . 6 . . . . Weapon . | . . . . . . . . . Parts Attached 77 | 8 6 15 13 16 4 3 11 1 Power 9 | 2 . 2 2 2 . 1 . . Engine 6 | 2 . 2 2 . . . . . Core 3 | . . . . 2 . 1 . . Reactor . | . . . . . . . . . Propulsion 15 | 2 1 5 3 3 . . 1 . Treads 3 | 2 1 . . . . . . . Leg 2 | . . . 2 . . . . . Wheel 6 | . . 5 1 . . . . . Hover . | . . . . . . . . . Flight 4 | . . . . 3 . . 1 . Utility 31 | 2 3 2 4 10 4 1 5 . Device 11 | 1 . 1 1 3 1 1 3 . Storage 7 | 1 2 1 2 1 . . . . Processor 7 | . . . . 3 2 . 2 . Hackware 3 | . . . . 3 . . . . Protection 3 | . 1 . 1 . 1 . . . Artifact . | . . . . . . . . . Weapon 22 | 2 2 6 4 1 . 1 5 1 Energy Gun 2 | . . 1 . . . . 1 . Energy Cannon 2 | . . . . . . . 2 . Ballistic Gun 6 | 2 2 1 . . . . 1 . Ballistic Cannon 2 | . . 2 . . . . . . Launcher 2 | . . . . . . 1 . 1 Special Weapon 2 | . . 1 1 . . . . . Impact Weapon 1 | . . . . 1 . . . . Slashing Weapon 2 | . . 1 1 . . . . . Piercing Weapon 2 | . . . 1 . . . 1 . Special Melee Weapon 1 | . . . 1 . . . . . Unidentified Prototypes 10 | . . 1 . . 1 1 7 . Parts Lost 10 | . 1 3 . . . . 6 . Power 2 | . . . . . . . 2 . Propulsion 1 | . . 1 . . . . . . Utility 5 | . 1 1 . . . . 3 . Weapon 2 | . . 1 . . . . 1 . Highest Loss Streak 5 | . 1 2 . . . . 5 . To Critical Strikes . | . . . . . . . . . Average Backups 11 | 2 11 13 11 8 7 8 8 8 Power . | . 1 . . . 1 1 . . Propulsion 2 | . 3 2 1 . . 1 . 1 Utility 5 | . 2 4 7 4 3 2 2 3 Weapon 2 | . 4 4 1 1 1 1 3 4 Tool/Special . | . . . . . . . . . Unused Backups 31 | . 1 8 7 2 2 . 6 5 Power 2 | . . . . . 1 . 1 . Propulsion 5 | . . 2 1 . . . 1 1 Utility 11 | . . 1 4 . 1 . 3 2 Weapon 11 | . 1 5 2 . . . 1 2 Tool/Special 2 | . . . . 2 . . . . Average Slot Usage (%) 90 | . 98 97 92 68 70 79 81 68 Engine 11 | . 14 14 14 3 . . 4 5 Core 1 | . . . . 3 10 10 5 . Treads 5 | . 28 10 . . . . . . Leg 5 | . . . 14 . . . . . Wheel 10 | . . 17 13 . . . . . Flight 2 | . . . . 9 10 10 10 10 Device 8 | . 4 12 3 9 19 15 21 21 Storage 12 | . 14 14 14 5 5 5 5 5 Processor 4 | . . . . 12 16 25 24 15 Protection 3 | . 8 . 4 4 3 5 . . Energy Gun 1 | . . . 4 . . . . . Ballistic Gun 6 | . 28 13 . . . . . . Ballistic Cannon 1 | . . 5 . . . . . . Special Weapon 2 | . . 3 3 . . . 3 . Slashing Weapon 3 | . . 3 6 4 . . . . Piercing Weapon 3 | . . . 7 . . . . . Special Melee Weapon 2 | . . . 5 . . . . . Peak Build Rating 134 | 7 9 24 35 106 112 118 134 112 Average Rating 40 | 6 8 18 26 90 107 116 121 112 On Entrance 56 | . 7 9 22 35 102 112 118 107 Avg Prop Armor Cover (%) 6 | . . 5 7 . . . . . Naked Turns . | . . . . . . . . . Heaviest Build 61 | 15 32 33 61 61 49 61 57 27 Greatest Support 40 | 40 40 40 40 40 31 31 32 32 Greatest Overweight (x) 6 | 1 . 2 2 1 1 1 6 . Average Overweight (x) . | . . . . . 1 1 . . Largest Inventory Capacity 20 | 8 15 15 20 20 10 10 10 10 Average Capacity 14 | 7 14 15 15 10 10 10 10 10 Most Carried 20 | 4 15 15 20 20 10 10 10 9 Average Carried 13 | 2 11 14 15 10 9 9 9 9 Final Capacity 20 | 8 15 15 20 10 10 10 10 10 Final Carried 20 | 4 15 15 20 10 10 10 10 9 Class Distribution -------------------- 83% | Mutant 7% | Derelict-Mutant 4% | Hacker-Mutant 3% | Commander-Mutant Dominant Class ---------------- Mutant | -10/Materials Mutant | -10/Subcaves Mutant | -7/Scraptown Hacker-Mutant | -5/Factory Mutant | -5/Upper Caves Mutant | -5/Upper Caves Commander-Mutant | -5/Warlord Mutant | -4/Proximity Caves Resources | -11 -10 -10 -7 -5 -5 -5 -5 -4 ----------- Run | Yrd Mat Sub Scr Fac Upp Upp War Pro Matter Collected 3477 | 382 463 432 301 463 1018 68 350 . Remotely . | . . . . . . . . . Salvage Created 2088 | 218 618 276 . 448 151 . 377 . Parts 96 | 14 37 14 . 18 . . 13 . Haulers Intercepted 4 | . 2 . . 2 . . . . Recyclers Shooed 1 | . 1 . . . . . . . Parts Field Recycled . | . . . . . . . . . Retrieved Matter . | . . . . . . . . . Parts Self-Destructed 40 | . . 18 . . 14 8 . . Prevented 6 | . . . . . . 6 . . Parts Restored . | . . . . . . . . . Kills | -11 -10 -10 -7 -5 -5 -5 -5 -4 ------- Run | Yrd Mat Sub Scr Fac Upp Upp War Pro Combat Hostiles Destroyed 27 | . 12 4 . 2 . . 9 . Melee 3 | . . . . 2 . . 1 . Guns 16 | . 12 4 . . . . . . Cannons 8 | . . . . . . . 8 . Classes Destroyed 16 | 3 4 2 . 1 2 . 4 . Worker 4 | 2 1 . . 1 . . . . Tunneler 4 | 4 . . . . . . . . Hauler 4 | . 2 . . 2 . . . . Recycler 2 | 1 . . . 1 . . . . Operator 1 | . 1 . . . . . . . Watcher 1 | . 1 . . . . . . . Grunt 15 | . 12 2 . . . . 1 . Protector 2 | . . . . . . . 2 . Hunter 2 | . . . . . . . 2 . Programmer 3 | . . . . 2 . . 1 . Striker 2 | . . . . . . . 2 . Executioner 1 | . . . . . . . 1 . Artisan 1 | . . 1 . . . . . . Subdweller 2 | . . 2 . . . . . . Samaritan 3 | . . . . . 3 . . . Tinkerer 1 | . . . . . 1 . . . Best Kill Streak 4 | 3 3 2 . 3 . . 4 . Combat Bots Only 4 | . 3 2 . 2 . . 4 . Max Kills in Single Turn 1 | 1 1 1 . 1 1 . 1 . Gunslinging . | . . . . . . . . . Exploded . | . . . . . . . . . Melee 1 | . . . . 1 . . 1 . Uniques/NPCs Destroyed . | . . . . . . . . . Combat | -11 -10 -10 -7 -5 -5 -5 -5 -4 -------- Run | Yrd Mat Sub Scr Fac Upp Upp War Pro Hostile Shots Fired 152 | . 59 33 . 18 1 2 37 2 Missed 53 | . 16 12 . 4 1 2 17 1 Hits 99 | . 43 21 . 14 . . 20 1 Projectile 99 | . 43 21 . 14 . . 20 1 AOE 3 | . . . . . . 1 2 . Critical Strikes 4 | . 1 . . 2 . . . 1 Damage Taken 2351 | . 569 456 . 286 . 56 963 21 Core 418 | . 76 101 . 38 . . 203 . Absorbed by Shields . | . . . . . . . . . Ignored by Resistances 67 | . . . . . . . 67 . Regen/Repaired (Parts) 23 | . . . . 10 . . 13 . Core Remaining (%) 64 | 100 . . 29 . . . . . Volleys Fired 162 | 17 45 73 . . . . 26 1 Largest 2 | 2 2 2 . . . . 1 1 Hottest 260 | 40 40 100 . . . . 50 260 Shots Fired 239 | 34 90 88 . . . . 26 1 Gun 154 | 34 90 30 . . . . . . Cannon 63 | . . 37 . . . . 26 . Launcher 1 | . . . . . . . . 1 Special 21 | . . 21 . . . . . . Kinetic 191 | 34 90 67 . . . . . . Thermal 22 | . . 21 . . . . . 1 Explosive . | . . . . . . . . . Electromagnetic . | . . . . . . . . . Entropic 26 | . . . . . . . 26 . Robot Hit Streak 12 | 6 10 10 . . . . 12 . Robot Miss Streak 4 | 3 4 3 . . . . 1 . Penetration Max . | . . . . . . . . . Secondary Targets 2 | . 1 1 . . . . . . Max Gunslinging Chain 1 | . 1 1 . . . . . . Shots Hit Robots 158 | 21 62 27 7 13 6 . 22 . Core Hits 73 | 8 34 13 . 7 1 . 10 . Critical Kills 1 | . . . . . 1 . . . Critical Parts Destroyed 5 | . 1 . . . 3 . 1 . Critical Strikes 20 | . 1 . . 1 4 . 14 . Destroy 1 | . 1 . . . . . . . Smash 5 | . . . . . 4 . 1 . Sever 1 | . . . . 1 . . . . Sunder 13 | . . . . . . . 13 . Melee Attacks 85 | . . 15 7 35 6 3 19 . Impact 28 | . . . . . 6 3 19 . Slashing 50 | . . 15 . 35 . . . . Piercing . | . . . . . . . . . Sneak Attacks 8 | . . . . 4 4 . . . Combat Hostiles . | . . . . . . . . . Follow-up Attacks . | . . . . . . . . . Damage Inflicted 4719 | 258 805 701 . 699 676 . 1580 . Guns 1304 | 258 796 250 . . . . . . Cannons 1614 | . . 96 . . . . 1518 . Explosions . | . . . . . . . . . Melee 1768 | . . 331 . 699 676 . 62 . Ramming 9 | . 9 . . . . . . . Kinetic 1400 | 258 796 346 . . . . . . Thermal 24 | . . 24 . . . . . . Explosive . | . . . . . . . . . Electromagnetic . | . . . . . . . . . Impact 738 | . . . . . 676 . 62 . Slashing 1030 | . . 331 . 699 . . . . Piercing . | . . . . . . . . . Entropic 1518 | . . . . . . . 1518 . Highest Corruption 15 | . . . . 5 4 . 15 15 Average Corruption 4 | . . . . 4 1 . 9 15 Corruption Purged 5 | . . . . 1 4 . . . Corruption Blocked . | . . . . . . . . . Effects 15 | . . . . 6 5 . 2 2 Message Errors 1 | . . . . 1 . . . . Matter Fused 3 | . . . . 2 1 . . . Heat Flow Errors 3 | . . . . 1 1 . . 1 Energy Discharges 2 | . . . . 1 1 . . . Parts Fused 1 | . . . . . 1 . . . Data Loss (minor) 2 | . . . . 1 . . 1 . Data Loss (major) 2 | . . . . . . . 1 1 Alerts 1 | . . . . . 1 . . . Overload Shots . | . . . . . . . . . Overflow Damage 692 | . . 17 . 114 490 . 71 . Projectiles 9 | . . . . . . . 9 . Explosions . | . . . . . . . . . Melee 683 | . . 17 . 114 490 . 62 . Knockbacks 2 | . . 2 . . . . . . Impact . | . . . . . . . . . Kinetic 2 | . . 2 . . . . . . Secondary . | . . . . . . . . . Self-Inflicted Damage . | . . . . . . . . . Shots . | . . . . . . . . . Rammed 4 | . 4 . . . . . . . Targets Rammed 4 | . 4 . . . . . . . Kicked . | . . . . . . . . . Crushed . | . . . . . . . . . Highest Temperature 161 | . 26 . . 104 161 . 48 103 Average Temperature 24 | . 7 . . 59 88 . 14 60 Received Heat Transfer 522 | . 324 93 . . . 12 93 . Siege Activations . | . . . . . . . . . Martial Activations . | . . . . . . . . . Shielding Activations . | . . . . . . . . . Robots Disrupted . | . . . . . . . . . Combat Hostiles . | . . . . . . . . . Robots Corrupted 2 | . . . . . 2 . . . Combat Hostiles . | . . . . . . . . . Parts Fried 8 | . . . . . 5 . 3 . Impact Corruptions 29 | . . . . . 26 . 3 . Robots Melted . | . . . . . . . . . Combat Hostiles . | . . . . . . . . . Parts Melted . | . . . . . . . . . Heat Transferred 50 | . . 50 . . . . . . Parts Sabotaged . | . . . . . . . . . Parts Stolen . | . . . . . . . . . Parts Stripped . | . . . . . . . . . Power Chain Reactions . | . . . . . . . . . Alert | -11 -10 -10 -7 -5 -5 -5 -5 -4 ------- Run | Yrd Mat Sub Scr Fac Upp Upp War Pro Maximum Alert Level . | . . . . . . . . . Low Security (%) 100 | 100 100 . . 100 . . . . Level 1 . | . . . . . . . . . Level 2 . | . . . . . . . . . Level 3 . | . . . . . . . . . Level 4 . | . . . . . . . . . Level 5 . | . . . . . . . . . High Security . | . . . . . . . . . Max Security . | . . . . . . . . . Peak Influence 165 | 10 165 . . 54 . . . . Initial . | . . . . . . . . . Average 41 | 1 70 . . 7 . . . . Influence Increases 1787 | 35 386 297 . 303 . 170 596 . Destroy 0b10 Robot/C 840 | . 240 160 . 120 . 100 220 . Destroy 0b10 Robot/NC 100 | 35 25 . . 30 . . 10 . Destroy Leader 120 | . 66 10 . 24 . 20 . . Allied During Kill 178 | . . 82 . 25 . 50 21 . Successful Hack 47 | . 23 . . 24 . . . . Select Force Hacks 30 | . 30 . . . . . . . Disable Machine 30 | . . . . 30 . . . . Destroy Structure 52 | . 2 . . 50 . . . . Lose Combat Pursuer 390 | . . 45 . . . . 345 . Influence Decreases 1787 | 35 346 171 166 303 . 106 374 286 Entered New Map 536 | . . 20 166 . . . 64 286 Time Decay 876 | 35 336 91 . 154 . 106 154 . Lost Part 60 | . 10 . . . . . 50 . Lost Ally 315 | . . 60 . 149 . . 106 . Squads Dispatched 6 | . 3 . . 3 . . . . Investigation 3 | . 2 . . 1 . . . . Extermination 1 | . . . . 1 . . . . Reinforcement 2 | . 1 . . 1 . . . . Assault . | . . . . . . . . . Garrison . | . . . . . . . . . Intercept . | . . . . . . . . . Searches Triggered . | . . . . . . . . . Construction Impeded . | . . . . . . . . . Haulers Reinforced . | . . . . . . . . . Active Scanning Responses . | . . . . . . . . . Cargo Convoy Interrupts . | . . . . . . . . . Stealth | -11 -10 -10 -7 -5 -5 -5 -5 -4 --------- Run | Yrd Mat Sub Scr Fac Upp Upp War Pro Distress Signals 1 | . . . . . . . 1 . Communications Jammed 17 | . . . . 17 . . . . Distress Signals 17 | . . . . 17 . . . . Times Spotted 161 | . 17 18 . 6 1 1 115 3 Peak Tracking Total 14 | . 3 3 . 2 1 1 14 2 Tactical Retreats 9 | . . 1 . . . . 8 . Traps | -11 -10 -10 -7 -5 -5 -5 -5 -4 ------- Run | Yrd Mat Sub Scr Fac Upp Upp War Pro Traps Triggered 4 | . 1 3 . . . . . . Indirectly . | . . . . . . . . . Trap Hack Attempts . | . . . . . . . . . Triggered . | . . . . . . . . . Disarmed . | . . . . . . . . . Reprogrammed . | . . . . . . . . . Reused 1 | . . . . . 1 . . . Traps Extracted . | . . . . . . . . . Installed 2 | . . . . . 1 . 1 . Triggered . | . . . . . . . . . Most Traps Carried 2 | . . . 2 2 2 1 1 . Time Bombs Activated 1 | . . . . . . . 1 . Exploded 1 | . . . . . . . 1 . Machines | -11 -10 -10 -7 -5 -5 -5 -5 -4 ---------- Run | Yrd Mat Sub Scr Fac Upp Upp War Pro Machines Disabled 5 | . . 2 . 2 . . 1 . Max in Single Turn 1 | . . 1 . . . . 1 . Machines Repaired . | . . . . . . . . . Machines Dismantled . | . . . . . . . . . Machines Sabotaged . | . . . . . . . . . Overloaded Fab Kills . | . . . . . . . . . Hacking | -11 -10 -10 -7 -5 -5 -5 -5 -4 --------- Run | Yrd Mat Sub Scr Fac Upp Upp War Pro Machines Accessed 19 | . 5 2 4 5 . . 3 . Terminals 6 | . 4 . . 2 . . . . Fabricators . | . . . . . . . . . Repair Stations 1 | . . . . 1 . . . . Recycling Units 1 | . 1 . . . . . . . Scanalyzers 1 | . . . . 1 . . . . Garrison Access 1 | . . . . 1 . . . . Total Hacks 63 | . 16 6 21 13 . . 7 . Successful 47 | . 8 6 21 5 . . 7 . Failed 16 | . 8 . . 8 . . . . Catastrophic 2 | . 1 . . 1 . . . . Database Lockouts . | . . . . . . . . . Manual 20 | . 17 . . 3 . . . . Terminals 21 | . 15 . . 6 . . . . Fabricators . | . . . . . . . . . Repair Stations 3 | . . . . 3 . . . . Recycling Units 1 | . 1 . . . . . . . Scanalyzers 1 | . . . . 1 . . . . Garrison Access 3 | . . . . 3 . . . . Terminal Hacks 37 | . 1 6 21 2 . . 7 . Record 31 | . . 5 20 . . . 6 . Robot Analysis 1 | . 1 . . . . . . . Open Door 1 | . . . . . . . 1 . Level Access Points 1 | . . . . 1 . . . . Zone Layout 1 | . . . . 1 . . . . Proto ID Catalog 2 | . . 1 1 . . . . . Fabricator Hacks . | . . . . . . . . . Repair Station Hacks 2 | . . . . 2 . . . . Scan Component 1 | . . . . 1 . . . . Repair 1 | . . . . 1 . . . . Recycling Unit Hacks . | . . . . . . . . . Scanalyzer . | . . . . . . . . . Garrison Access Hacks . | . . . . . . . . . Unauthorized Hacks 8 | . 7 . . 1 . . . . Terminals 7 | . 6 . . 1 . . . . Botnet 4 | . 3 . . 1 . . . . Operators 1 | . 1 . . . . . . . Skim 2 | . 2 . . . . . . . Fabricators . | . . . . . . . . . Repair Stations . | . . . . . . . . . Recycling Units 1 | . 1 . . . . . . . Tunnel 1 | . 1 . . . . . . . Scanalyzers . | . . . . . . . . . Garrison Access . | . . . . . . . . . Data Cores Recovered 1 | . . . . 1 . . . . Used . | . . . . . . . . . Hacking Detections 9 | . 4 . . 5 . . . . Full Trace Events 2 | . 1 . . 1 . . . . Feedback Events . | . . . . . . . . . Feedback Blocked . | . . . . . . . . . Robot Schematics Acquired . | . . . . . . . . . Robots Built . | . . . . . . . . . Authchips . | . . . . . . . . . Time . | . . . . . . . . . Total Robot Build Rating . | . . . . . . . . . Part Schematics Acquired . | . . . . . . . . . Parts Built . | . . . . . . . . . Authchips . | . . . . . . . . . Time . | . . . . . . . . . Total Part Build Rating . | . . . . . . . . . Part Studies Acquired . | . . . . . . . . . Parts Repaired 1 | . . . . 1 . . . . Time 25 | . . . . 25 . . . . Parts Recycled . | . . . . . . . . . Recycled Matter . | . . . . . . . . . Retrieved Matter . | . . . . . . . . . Retrieved Components . | . . . . . . . . . Parts Scanalyzed . | . . . . . . . . . Part Schematics Acquired . | . . . . . . . . . Parts Damaged . | . . . . . . . . . Bothacking | -11 -10 -10 -7 -5 -5 -5 -5 -4 ------------ Run | Yrd Mat Sub Scr Fac Upp Upp War Pro Used RIF Installer . | . . . . . . . . . Robots Hacked . | . . . . . . . . . Non-combat . | . . . . . . . . . Combat . | . . . . . . . . . Robot Hacks Applied . | . . . . . . . . . Relay Couplers Released . | . . . . . . . . . Fabnet Peak Effective % . | . . . . . . . . . Robots Rewired 5 | . . . . . . . 5 . Allies Hacked . | . . . . . . . . . Hacks Repelled . | . . . . . . . . . Allies | -11 -10 -10 -7 -5 -5 -5 -5 -4 -------- Run | Yrd Mat Sub Scr Fac Upp Upp War Pro Total Allies 30 | . . 16 . . 5 4 5 . Largest Group 14 | . . 14 10 10 5 6 10 . Highest-Rated Group 596 | . . 266 190 190 238 384 596 . Highest-Rated Ally 81 | . . 19 19 19 50 81 80 . Initial UFD Resources 41 | . . . . 38 38 38 38 41 Total Orders 3 | . . . . . . . 3 . STAY 2 | . . . . . . . 2 . FOLLOW 1 | . . . . . . . 1 . Ally Attacks 186 | . . 52 . 44 7 38 45 . Total Damage 3706 | . . 851 . 541 186 1030 1098 . Kills 24 | . . 7 . 6 2 5 4 . Allies Corrupted 1 | . . . . . . . 1 . Allies Melted 2 | . . . . . . . 2 . Intel | -11 -10 -10 -7 -5 -5 -5 -5 -4 ------- Run | Yrd Mat Sub Scr Fac Upp Upp War Pro Active Infowar (turns) 3780 | 126 391 . . 732 682 661 1147 41 Optics 3263 | . . . . 732 682 661 1147 41 Seismic 2678 | 126 391 . . 731 682 661 87 . Jamming 2081 | . . . . 651 682 661 87 . Robot Analysis Total 1 | . 1 . . . . . . . Derelict Logs Recovered 9 | . . 3 5 . . 1 . . Drone Launches . | . . . . . . . . . Drone Recoveries . | . . . . . . . . . Exploration | -11 -10 -10 -7 -5 -5 -5 -5 -4 ------------- Run | Yrd Mat Sub Scr Fac Upp Upp War Pro Turns Passed 15022 | 233 1224 4334 5934 766 682 661 1147 41 Spaces Moved 10642 | 107 612 2405 4348 600 562 574 1421 13 Core 8 | 7 . . . . . . 1 . Treads 1646 | 100 612 934 . . . . . . Legs 1744 | . . . 1730 14 . . . . Wheels 4089 | . . 1471 2618 . . . . . Hover . | . . . . . . . . . Flight 3155 | . . . . 586 562 574 1420 13 Fastest Speed 34 | 50 160 100 105 37 99 99 34 34 Average Speed 115 | 153 160 126 134 97 99 99 39 34 Slowest Speed 350 | 160 160 160 210 210 99 99 350 34 Overloaded Moves . | . . . . . . . . . Propulsion Burnouts . | . . . . . . . . . Robots Hopped 7 | . . . . . . . 7 . Potential Cave-ins 9 | . . . . . . . 9 . Cave-ins Triggered 2 | . . . . . . . 2 . Exploration Rate (%) 54 | 6 82 93 92 14 50 63 84 4 Regions Visited 8 Branch Regions 6 Pre-discovered Areas 7 | . 1 4 2 . . . . . Known Exits Taken . | . . . . . . . . . Unknown Exits Taken 8 | 1 1 1 1 1 1 1 1 . Scrap Searched 21 | . . 13 5 . 1 2 . . Spaces Dug 40 | . . 5 . 17 . 3 15 . Terrain Destroyed 41 | . . 5 . 17 . 3 16 . Melee 40 | . . 5 . 17 . 3 15 . Projectile 1 | . . . . . . . 1 . AOE . | . . . . . . . . . Terrain Rammed . | . . . . . . . . . Walls Destroyed . | . . . . . . . . . Machines Disabled . | . . . . . . . . . Actions | -11 -10 -10 -7 -5 -5 -5 -5 -4 --------- Run | Yrd Mat Sub Scr Fac Upp Upp War Pro Total 12921 | 138 768 3549 4422 722 681 661 1932 48 Wait 1707 | 4 84 1009 22 50 86 78 341 33 Move 10620 | 106 611 2404 4347 599 561 573 1406 13 Hop 6 | . . . . . . . 6 . Pick Up 79 | 3 13 14 16 6 11 2 14 . Fast Attach 23 | 7 . . 3 5 1 1 6 . Attach 21 | . 1 3 . 8 4 2 2 1 Detach 11 | . . . . 2 3 1 5 . Swap 64 | 1 5 13 12 6 . . 27 . Drop 77 | . 5 18 15 11 8 1 19 . Fire 162 | 17 45 73 . . . . 26 1 Melee 85 | . . 15 7 35 6 3 19 . Ram . | . . . . . . . . . Kick . | . . . . . . . . . Crush 4 | . 4 . . . . . . . Escape Stasis 1 | . . . . . . . 1 . Rewire 58 | . . . . . . . 58 . Trap 3 | . . . . . 1 . 2 . Miscellaneous . | . . . . . . . . . Route ------- -11/Scrapyard -10/Materials (discovered 4 exits: [*Mat x2] / [*Min] / *Sub) -10/Subcaves (discovered 4 exits: [*Mat x2] / [*Rec] / *Scr) -7/Scraptown (discovered 2 exits: *Fac x2) -5/Factory (discovered 5 exits: Fac x4 / [*Upp]) -5/Upper Caves -5/Upper Caves -5/Warlord -4/Proximity Caves History --------- Turn | Location | Event 2 | -11/Scrapyard | Met Revision 17 10 | -11/Scrapyard | Discovered new exit (range 16) 234 | -11/Scrapyard | Entered Materials 309 | -10/Materials | Build established: Mutant 594 | -10/Materials | Discovered new exit (range 16) 1136 | -10/Materials | Discovered new exit (range 16) 1270 | -10/Materials | Discovered new exit (range 13) 1444 | -10/Materials | Discovered new exit (range 9) 1458 | -10/Materials | Entered Subcaves 1459 | -10/Subcaves | Approached by a straggling Scientist 1577 | -10/Subcaves | Shifting Twisted Machinery released Sub. Laser 1593 | -10/Subcaves | Shifting Twisted Machinery released Sub. Laser 1615 | -10/Subcaves | Shifting Twisted Machinery released Battle Cannon 1633 | -10/Subcaves | Shifting Twisted Machinery released Barrage Gun 1862 | -10/Subcaves | Scientist uncovered a shortcut to Scraptown 2022 | -10/Subcaves | Visited triangular shrine 2033 | -10/Subcaves | Found Prototype Device 2033 | -10/Subcaves | Identified V3-11A's Pendant 2038 | -10/Subcaves | Befriended Subdweller 2208 | -10/Subcaves | Befriended Subdweller 2208 | -10/Subcaves | Befriended Subdweller 2336 | -10/Subcaves | Learned location of Zion (-7) 2383 | -10/Subcaves | Befriended Subdweller 2383 | -10/Subcaves | Befriended Subdweller 2505 | -10/Subcaves | Learned Materials emergency access door positions 2523 | -10/Subcaves | Befriended Subdweller 2926 | -10/Subcaves | Shifting Twisted Machinery released Mak. System Restoration Module 3053 | -10/Subcaves | Befriended Subdweller 3053 | -10/Subcaves | Befriended Subdweller 3132 | -10/Subcaves | Core integrity fell below 50% 4093 | -10/Subcaves | Befriended Subdweller 4248 | -10/Subcaves | Visited Clippyterm 4251 | -10/Subcaves | Learned location of Deep Caves (-7) 4251 | -10/Subcaves | Learned location of Extension (-6) 4426 | -10/Subcaves | Visited 4L-MR0's lab 4444 | -10/Subcaves | Found Flightbrick 4451 | -10/Subcaves | Found Prototype Device 4473 | -10/Subcaves | Befriended Subdweller 4524 | -10/Subcaves | Discovered new exit (range 10) 4528 | -10/Subcaves | Befriended Subdweller 4609 | -10/Subcaves | Disturbed a concealed Subdweller 4613 | -10/Subcaves | Befriended Subdweller 4713 | -10/Subcaves | Discovered new exit (range 6) 4748 | -10/Subcaves | Befriended Subdweller 4923 | -10/Subcaves | Befriended Subdweller 5048 | -10/Subcaves | Befriended Subdweller 5078 | -10/Subcaves | Befriended Subdweller 5292 | -10/Subcaves | Build established: Derelict-Mutant 5555 | -10/Subcaves | Discovered new exit (range 15) 5792 | -10/Subcaves | Entered Scraptown 5792 | -7/Scraptown | Accompanied by 10 allies 5850 | -7/Scraptown | Visited Spacefarers 5904 | -7/Scraptown | Build established: Mutant 5925 | -7/Scraptown | Scanned Subdweller tech in exchange for log data 5927 | -7/Scraptown | Learned Factory emergency access door positions 5928 | -7/Scraptown | Learned location of Armory (-4) 5930 | -7/Scraptown | Learned 8 Factory zone layouts 5931 | -7/Scraptown | Learned Research stockpile data 5946 | -7/Scraptown | Discovered new exit (range 13) 6090 | -7/Scraptown | Delivered V3-11A's Pendant to T0-NE2 in exchange for information 6299 | -7/Scraptown | Visited Comm Corps 6355 | -7/Scraptown | Visited SPCMW 6449 | -7/Scraptown | Visited Cyclists 6485 | -7/Scraptown | Visited Assassins FH 6526 | -7/Scraptown | Visited TADAMA 6577 | -7/Scraptown | Visited UFD Registry 6577 | -7/Scraptown | Registered with UFD as "Mattersink" 6617 | -7/Scraptown | Visited The Evicted 6665 | -7/Scraptown | Entered Cyclist Reading Room 6783 | -7/Scraptown | Guru changed UFD alias to "Deathdome" 6915 | -7/Scraptown | Visited Supply Room 6939 | -7/Scraptown | Visited Infowarlord's Domain 6962 | -7/Scraptown | Visited Curators Association 7024 | -7/Scraptown | Delivered Scrap Shield to a Scientist 7087 | -7/Scraptown | Visited Science Guys 7121 | -7/Scraptown | Visited Scrapoid Pod Storage 7138 | -7/Scraptown | Visited Junk Repository 7212 | -7/Scraptown | Visited Science Testing Area 7243 | -7/Scraptown | Visited Observation Area 7297 | -7/Scraptown | Visited Junk Repository 7537 | -7/Scraptown | Found Scrapoid Pod 8833 | -7/Scraptown | Found Spectral Analyzer 11150 | -7/Scraptown | Discovered new exit (range 3) 11726 | -7/Scraptown | Entered Factory 11726 | -5/Factory | Accompanied by 10 allies 11726 | -5/Factory | Evolved 10 slots: Power x1, Propulsion x3, Utility x6 11757 | -5/Factory | Attached Flightbrick, gained temporary slots: Utility x3 11808 | -5/Factory | Repaired Mak. Transmission Jammer 11831 | -5/Factory | Identified exit to Factory 11959 | -5/Factory | Lost 8 allies 12030 | -5/Factory | Discovered new exit (range 14) 12035 | -5/Factory | Build established: Hacker-Mutant 12492 | -5/Factory | Entered Upper Caves 12494 | -5/Upper Caves | UFD Scientist delivered a prototype 12497 | -5/Upper Caves | Found Prototype Protection 12771 | -5/Upper Caves | Build established: Mutant 12848 | -5/Upper Caves | Ambushed by wild Derelicts 12936 | -5/Upper Caves | Discovered new exit (range 16) 13008 | -5/Upper Caves | Scrapoid Pod released 05U05-D (x5) 13012 | -5/Upper Caves | Identified Enh. Scrap Shield 13174 | -5/Upper Caves | Entered another Upper Caves area 13174 | -5/Upper Caves | Accompanied by 3 allies 13411 | -5/Upper Caves | Prototype Device suddenly appears! 13414 | -5/Upper Caves | Found Prototype Device 13414 | -5/Upper Caves | Identified Amulet of Y3-NDR 13614 | -5/Upper Caves | Joined by bewildered Wizard 13616 | -5/Upper Caves | Joined by bewildered Wizard 13617 | -5/Upper Caves | Joined by bewildered Wizard 13674 | -5/Upper Caves | Learned Factory terminal intel 13706 | -5/Upper Caves | Discovered new exit (range 15) 13710 | -5/Upper Caves | Joined by bewildered Wizard 13835 | -5/Upper Caves | Entered Warlord 13835 | -5/Warlord | Accompanied by 5 allies 13913 | -5/Warlord | Found Prototype Device 13913 | -5/Warlord | Identified Minesniffer Drone Bay 14121 | -5/Warlord | Visited the Vortex Lab 14124 | -5/Warlord | Found Prototype Energy Cannon 14126 | -5/Warlord | Found Prototype Energy Cannon 14126 | -5/Warlord | Identified Vortex Cannon (x2) 14129 | -5/Warlord | Found Prototype Energy Gun 14129 | -5/Warlord | Identified Vortex Rifle 14133 | -5/Warlord | Found Vortex Rifle 14142 | -5/Warlord | Warlord's base attacked by MAIN.C 14151 | -5/Warlord | Found Prototype Device 14151 | -5/Warlord | Identified Exp. Focal Shield 14159 | -5/Warlord | Found Prototype Hackware 14162 | -5/Warlord | Found Prototype Processor 14229 | -5/Warlord | Rebuked by Warlord 14329 | -5/Warlord | Build established: Commander-Mutant 14429 | -5/Warlord | Lost 5 allies 14471 | -5/Warlord | Warlord forces counterattacked 14526 | -5/Warlord | Spotted Executioner 14527 | -5/Warlord | Spotted Executioner 14549 | -5/Warlord | P-70 Sage assimilated allied Sentinel 6c 14572 | -5/Warlord | Spotted Executioner 14589 | -5/Warlord | Destroyed Executioner 14604 | -5/Warlord | Spotted Executioner 14630 | -5/Warlord | Spotted Striker 14632 | -5/Warlord | Destroyed Striker 14681 | -5/Warlord | Lost 42 allies 14695 | -5/Warlord | Spotted Executioner 14746 | -5/Warlord | Spotted B-86 Titan 14762 | -5/Warlord | Spotted Executioner 14817 | -5/Warlord | Warlord base infiltrated, sounded retreat 14886 | -5/Warlord | Spotted Striker 14902 | -5/Warlord | Destroyed Striker 14920 | -5/Warlord | Discovered new exit (range 22) 14920 | -5/Warlord | Spotted Striker 14920 | -5/Warlord | Spotted Striker 14924 | -5/Warlord | Crushed by falling debris 14942 | -5/Warlord | Spotted Striker 14976 | -5/Warlord | Crushed by falling debris 14976 | -5/Warlord | System corruption reached 10% 14977 | -5/Warlord | Spotted Executioner 14980 | -5/Warlord | Lost 15 allies 14982 | -5/Warlord | Entered Proximity Caves 14984 | -4/Proximity Caves | Spotter reported a threat 14985 | -4/Proximity Caves | Spotter reported a threat 15007 | -4/Proximity Caves | Lost 5 parts (1p3u1w) 15023 | -4/Proximity Caves | Self-destructed Last Messages --------------- 14976_ Mak. Salvage Targeting Computer destroyed. 14976_ System corrupted by crushing effect (+5). 14976_ Temporary Utility slot lost. 14977_ HV Slug penetrates G-67 Veteran. 14977_ G-67 Veteran suffers critical hit (Destroy). 14977_ G-67 Veteran destroyed. 14977_ HV Slug penetrates G-67 Veteran. 14979_ Penetrated by Slug. 14979_ Knocked back. 14981_ The unstable cave ceiling collapses. 14981_ Knocked back. LOCATION=UNKNOWN GOAL=ESCAPE 14983_ N-01 Spotter is scanning... 14984_ N-01 Spotter sends a signal. 14984_ ALERT: Unidentified potential threat approaching Complex 0b10. 14985_ N-01 Spotter sends a signal. 14985_ ALERT: Unidentified potential threat approaching Complex 0b10. 14992_ System corrupted: Heat flow error (+132). 15008_ System corrupted: Substantial component data lost. Map ----- +----------------------------------------------------+ | ?????????????????????????????????????????????????? | | ?????????????????????????????????????????????????? | | ?????????????????????????????????????????????????? | | ?????????????????????????????????????????????????? | | ?????????????????????????????????????????????????? | | ?????????????????????????????????????????????????? | | ?????????????????????????????????????????????????? | | ?????????????????????????????????????????????????? | | ?????????????????????????????????????????????????? | | ?????????????????????????????????????????????????? | | ?????????????????????????????????????????????????? | | ?????????????????????????????????????????????????? | | ?????????????????????????????????????????????????? | | ?????????????????????????????????????????????????? | | ?????????????????????????????????????????????????? | | ?????????????????????????????????????????????????? | | ???????????????????????####??????????????????????? | | ???????????????????????# ##?????????????????????? | | ???????????????????????# #####?????????????????? | | ???????????????????????# #?????????????????? | | ??????????????????????## #?????????????????? | | ?????????????????????## ##?????????????????? | | ?????????????????????# ###??????????????????? | | ?????????????????????# #????????????????????? | | ?????????????????????# #### % #????????? | | ?????????????????##### @ g #????????? | | ?????????????????# # m ? | | ?????????????????# ###### #??? | | ?????????????????# ????? #??? | | ?????????????????# ???? #?? | | ?????????????????## ####???? #??? | | ??????????????????## ##???????? ## #??? | | ???????????????????#######?????????? ##???????? | | ?????????????????????????????????????####????????? | | ?????????????????????????????????????????????????? | | ?????????????????????????????????????????????????? | | ?????????????????????????????????????????????????? | | ?????????????????????????????????????????????????? | | ?????????????????????????????????????????????????? | | ?????????????????????????????????????????????????? | | ?????????????????????????????????????????????????? | | ?????????????????????????????????????????????????? | | ?????????????????????????????????????????????????? | | ?????????????????????????????????????????????????? | | ?????????????????????????????????????????????????? | | ?????????????????????????????????????????????????? | | ?????????????????????????????????????????????????? | | ?????????????????????????????????????????????????? | | ?????????????????????????????????????????????????? | | | +----------------------------------------------------+ Best States ------------- Heat Dissipation 40 Coolant Potential 120 Energy Generation 29 Energy Capacity 365 Matter Stores 400 Matter Capacity 400 Sight Range 24 Terrain Scan Density 10 Jamming Range 14 Armor Coverage 800 Resistance: KI 30 Evasion (%) 63 Melee Accuracy 8 Target Analysis 8 Recoil Reduction 2 Salvage Targeting 8 Offensive Hacking 20 Defensive Hacking 10 Trap Extractor Capacity 6 Item Schematics ----------------- None Robot Schematics ------------------ None Fabricated ------------ Nothing Repaired ---------- Mak. Transmission Jammer | 60% | -5/Factory Studied --------- None Alien Tech Used ----------------- None Achievements -------------- Rodney's Helpers SUBSUB Challenges ------------ None Game ------ Seed WaveDefensePick Manual? 0 Play Time 02:34:48 Cumulative 417.2 hours Start 2026.07.01 @ 13:01:29 End 2026.07.01 @ 16:35:19 Sessions 1 Manual Loads 0 Difficulty Rogue Special Mode None Game No. 311 Rogue 311 Adventurer 0 Explorer 0 Win Type - Total 9 Types 4/0/3/2/0/0/0/0/0/0 Lore% 78 Gallery% 73 Achievement% 52 Wizard Run 0 Options --------- Layout 2 ASCII 0 Keyboard 1 Movement Vi Keybinds 0 Fullscreen 2 Font 32/SmallcapsGlow Map View 77x44 Zoom Use 0% Tactical HUD 1 Map Filters NONE Filters NONE Steam 1 RUN: 15dc2258-ba24-424c-b229-d72c1af0c5b5